Cogmind - Beta 13 @@@ ROGUE MODE // 2024.04.03 @ 02:49:23 Player: gabr Result: Destroyed by Y-45 Defender with Beam Rifle Performance ------------- Evolutions (1) 500 Regions Visited (3) 600 Robots Destroyed (13) 65 Value Destroyed (232) 232 Prototype IDs (0) 0 Alien Tech Used (0) 0 Bonus (0) 0 TOTAL SCORE: 1397 Bonus ------- None Cogmind --------- Core Integrity 0/400 Matter 290/300 Energy 31/100 System Corruption 0% Temperature Warning (355) Movement Core (50) Location -9/Materials Parts ------- > --- POWER (1) -------- (None) > --- PROPULSION (4) --- (None) > --- UTILITY (2) ------ (None) > --- WEAPON (2) ------- Light Assault Rifle > --- INVENTORY (5) ---- Large Storage Unit Signal Interpreter EM Pulse Gun Beam Cannon Mining Laser Peak State ------------ > --- POWER ------------ Light Ion Engine > --- PROPULSION ------- Aluminum Leg Aluminum Leg Aluminum Leg > --- UTILITY ---------- Large Storage Unit Sensor Array > --- WEAPON ----------- Medium Laser Beam Cannon > --- INVENTORY -------- Light Ion Engine Small Storage Unit Large Storage Unit Large Storage Unit Visual Processing Unit Signal Interpreter EM Pulse Gun EM Pulse Gun Mining Laser [Rating: 9] Favorites ----------- Power Light Ion Engine Engine Light Ion Engine Propulsion Aluminum Leg Leg Aluminum Leg Utility Large Storage Unit Device Sensor Array Storage Large Storage Unit Weapon Medium Laser Energy Gun Medium Laser Energy Cannon Beam Cannon Special Weapon Mining Laser Build | -11 -10 -10 -9 ------- Run | Yrd Mat Min Mat Slots Evolved 2 | . . . 2 Power . | . . . . Propulsion 2 | . . . 2 Utility . | . . . . Weapon . | . . . . Parts Attached 16 | 8 5 . 3 Power 1 | 1 . . . Engine 1 | 1 . . . Core . | . . . . Reactor . | . . . . Propulsion 3 | 2 . . 1 Treads . | . . . . Leg 3 | 2 . . 1 Wheel . | . . . . Hover . | . . . . Flight . | . . . . Utility 3 | 1 2 . . Device 1 | . 1 . . Storage 2 | 1 1 . . Processor . | . . . . Hackware . | . . . . Protection . | . . . . Artifact . | . . . . Weapon 9 | 4 3 . 2 Energy Gun 6 | 4 1 . 1 Energy Cannon 1 | . 1 . . Ballistic Gun 1 | . . . 1 Ballistic Cannon . | . . . . Launcher . | . . . . Special Weapon 1 | . 1 . . Impact Weapon . | . . . . Slashing Weapon . | . . . . Piercing Weapon . | . . . . Special Melee Weapon . | . . . . Unidentified Prototypes . | . . . . Parts Lost 8 | . . . 8 Power 1 | . . . 1 Propulsion 3 | . . . 3 Utility 2 | . . . 2 Weapon 2 | . . . 2 Highest Loss Streak 8 | . . . 8 To Critical Strikes . | . . . . Average Slot Usage (%) 89 | . 97 100 76 Engine 11 | . 14 14 8 Leg 28 | . 28 28 28 Device 6 | . 3 14 8 Storage 17 | . 24 14 10 Energy Gun 16 | . 21 14 11 Energy Cannon 5 | . 1 14 9 Special Weapon 1 | . 3 . . Naked Turns 3 | . . . 3 Heaviest Build 32 | 12 32 29 29 Greatest Support 30 | 20 20 20 30 Greatest Overweight (x) 7 | . 1 1 7 Average Overweight (x) . | . . 1 . Largest Inventory Capacity 15 | 8 15 15 15 Average Capacity 13 | 5 14 15 14 Most Carried 9 | 3 9 9 9 Average Carried 5 | 1 4 9 8 Final Capacity 15 | 8 15 15 5 Final Carried 9 | 2 9 9 5 Class Distribution -------------------- 100% | Mutant Dominant Class ---------------- Mutant | -10/Materials Mutant | -10/Mines Mutant | -9/Materials Resources | -11 -10 -10 -9 ----------- Run | Yrd Mat Min Mat Matter Collected 401 | 231 25 . 145 Remotely . | . . . . Salvage Created 444 | 111 25 . 308 Parts 26 | 4 4 . 18 Haulers Intercepted . | . . . . Recyclers Shooed . | . . . . Parts Field Recycled . | . . . . Retrieved Matter . | . . . . Parts Self-Destructed . | . . . . Prevented . | . . . . Kills | -11 -10 -10 -9 ------- Run | Yrd Mat Min Mat Combat Hostiles Destroyed 9 | . . . 9 Guns 2 | . . . 2 Cannons 7 | . . . 7 Classes Destroyed 6 | 2 1 . 3 Tunneler 1 | 1 . . . Recycler 2 | 1 . . 1 Watcher 1 | . 1 . . Swarmer 5 | . . . 5 Grunt 3 | . . . 3 Sentry 1 | . . . 1 Best Kill Streak 7 | 2 1 . 7 Combat Bots Only 7 | . . . 7 Max Kills in Single Turn 1 | 1 1 . 1 Gunslinging . | . . . . Exploded . | . . . . Melee . | . . . . Uniques/NPCs Destroyed . | . . . . Combat | -11 -10 -10 -9 -------- Run | Yrd Mat Min Mat Hostile Shots Fired 122 | . . . 122 Missed 26 | . . . 26 Damage Taken 978 | . . . 978 Core 402 | . . . 402 Absorbed by Shields . | . . . . Core Remaining (%) 100 | 100 . 100 . Volleys Fired 59 | 12 13 . 34 Largest 2 | 1 1 . 2 Hottest 110 | 50 100 . 110 Shots Fired 84 | 12 13 . 59 Gun 45 | 12 1 . 32 Cannon 27 | . . . 27 Launcher . | . . . . Special 12 | . 12 . . Kinetic . | . . . . Thermal 79 | 11 13 . 55 Explosive . | . . . . Electromagnetic 5 | 1 . . 4 Robot Hit Streak 10 | 4 1 . 10 Robot Miss Streak 4 | 2 1 . 4 Penetration Max . | . . . . Secondary Targets . | . . . . Shots Hit Robots 41 | 9 1 . 31 Core Hits 16 | 3 1 . 12 Critical Kills . | . . . . Critical Parts Destroyed . | . . . . Critical Strikes 2 | . . . 2 Burn 2 | . . . 2 Melee Attacks . | . . . . Impact . | . . . . Slashing . | . . . . Piercing . | . . . . Sneak Attacks . | . . . . Combat Hostiles . | . . . . Follow-up Attacks . | . . . . Damage Inflicted 626 | 111 12 . 503 Guns 276 | 111 12 . 153 Cannons 334 | . . . 334 Explosions . | . . . . Melee . | . . . . Ramming 16 | . . . 16 Kinetic . | . . . . Thermal 583 | 99 12 . 472 Explosive . | . . . . Electromagnetic 27 | 12 . . 15 Impact . | . . . . Slashing . | . . . . Piercing . | . . . . Highest Corruption . | . . . . Average Corruption . | . . . . Corruption Purged . | . . . . Corruption Blocked . | . . . . Overload Shots . | . . . . Overflow Damage . | . . . . Projectiles . | . . . . Explosions . | . . . . Melee . | . . . . Knockbacks . | . . . . Impact . | . . . . Kinetic . | . . . . Secondary . | . . . . Self-Inflicted Damage . | . . . . Shots . | . . . . Rammed . | . . . . Targets Rammed 4 | . . . 4 Kicked 4 | . . . 4 Crushed . | . . . . Highest Temperature 552 | 90 240 . 552 Average Temperature 174 | 40 117 . 233 Received Heat Transfer 264 | . . . 264 Effects 10 | . . . 10 Energy Bleed 1 | . . . 1 Interference 1 | . . . 1 Matter Decay 1 | . . . 1 Short Circuit 2 | . . . 2 Damage (minor) 4 | . . . 4 Damage (major) 1 | . . . 1 Siege Activations . | . . . . Robots Corrupted . | . . . . Combat Hostiles . | . . . . Parts Fried . | . . . . Impact Corruptions . | . . . . Robots Melted . | . . . . Combat Hostiles . | . . . . Parts Melted 1 | . . . 1 Heat Transferred 1591 | 296 37 . 1258 Parts Sabotaged . | . . . . Parts Stolen . | . . . . Parts Stripped . | . . . . Power Chain Reactions . | . . . . Alert | -11 -10 -10 -9 ------- Run | Yrd Mat Min Mat Peak Influence 384 | 10 32 12 384 Initial 12 | . 6 12 4 Average 64 | 2 17 12 163 Maximum Alert Level 1 | . . . 1 Low Security (%) 88 | 100 100 100 67 Level 1 11 | . . . 32 Level 2 . | . . . . Level 3 . | . . . . Level 4 . | . . . . Level 5 . | . . . . High Security . | . . . . Max Security . | . . . . Squads Dispatched 4 | . . . 4 Investigation 1 | . . . 1 Extermination . | . . . . Reinforcement 3 | . . . 3 Assault . | . . . . Garrison . | . . . . Intercept . | . . . . Searches Triggered . | . . . . Construction Impeded . | . . . . Haulers Reinforced . | . . . . Active Scanning Responses . | . . . . Cargo Convoy Interrupts . | . . . . Stealth | -11 -10 -10 -9 --------- Run | Yrd Mat Min Mat Distress Signals 6 | . . . 6 Communications Jammed . | . . . . Distress Signals . | . . . . Times Spotted 36 | . 2 . 34 Peak Tracking Total 19 | . 2 . 19 Tactical Retreats 4 | . . . 4 Traps | -11 -10 -10 -9 ------- Run | Yrd Mat Min Mat Traps Triggered 1 | . . . 1 Indirectly . | . . . . Trap Hack Attempts . | . . . . Triggered . | . . . . Disarmed . | . . . . Reprogrammed . | . . . . Reused . | . . . . Traps Extracted . | . . . . Installed . | . . . . Triggered . | . . . . Machines | -11 -10 -10 -9 ---------- Run | Yrd Mat Min Mat Machines Disabled . | . . . . Max in Single Turn . | . . . . Machines Repaired . | . . . . Machines Dismantled . | . . . . Machines Sabotaged . | . . . . Overloaded Fab Kills . | . . . . Hacking | -11 -10 -10 -9 --------- Run | Yrd Mat Min Mat Machines Accessed . | . . . . Terminals . | . . . . Fabricators . | . . . . Repair Stations . | . . . . Recycling Units . | . . . . Scanalyzers . | . . . . Garrison Access . | . . . . Total Hacks . | . . . . Successful . | . . . . Failed . | . . . . Catastrophic . | . . . . Database Lockouts . | . . . . Manual . | . . . . Terminals . | . . . . Fabricators . | . . . . Repair Stations . | . . . . Recycling Units . | . . . . Scanalyzers . | . . . . Garrison Access . | . . . . Terminal Hacks . | . . . . Fabricator Hacks . | . . . . Repair Station Hacks . | . . . . Recycling Unit Hacks . | . . . . Scanalyzer . | . . . . Garrison Access Hacks . | . . . . Unauthorized Hacks . | . . . . Terminals . | . . . . Fabricators . | . . . . Repair Stations . | . . . . Recycling Units . | . . . . Scanalyzers . | . . . . Garrison Access . | . . . . Data Cores Recovered . | . . . . Used . | . . . . Hacking Detections . | . . . . Full Trace Events . | . . . . Feedback Events . | . . . . Feedback Blocked . | . . . . Robot Schematics Acquired . | . . . . Robots Built . | . . . . Authchips . | . . . . Time . | . . . . Total Robot Build Rating . | . . . . Part Schematics Acquired . | . . . . Parts Built . | . . . . Authchips . | . . . . Time . | . . . . Total Part Build Rating . | . . . . Parts Repaired . | . . . . Time . | . . . . Parts Recycled . | . . . . Recycled Matter . | . . . . Retrieved Matter . | . . . . Retrieved Components . | . . . . Parts Scanalyzed . | . . . . Part Schematics Acquired . | . . . . Parts Damaged . | . . . . Bothacking | -11 -10 -10 -9 ------------ Run | Yrd Mat Min Mat Used RIF Installer . | . . . . Robots Hacked . | . . . . Non-combat . | . . . . Combat . | . . . . Robot Hacks Applied . | . . . . Relay Couplers Released . | . . . . Fabnet Peak Effective % . | . . . . Robots Rewired . | . . . . Allies Hacked . | . . . . Hacks Repelled . | . . . . Allies | -11 -10 -10 -9 -------- Run | Yrd Mat Min Mat Total Allies . | . . . . Largest Group . | . . . . Highest-Rated Group . | . . . . Highest-Rated Ally . | . . . . Total Orders . | . . . . Ally Attacks . | . . . . Total Damage . | . . . . Kills . | . . . . Allies Corrupted . | . . . . Allies Melted . | . . . . Intel | -11 -10 -10 -9 ------- Run | Yrd Mat Min Mat Robot Analysis Total . | . . . . Derelict Logs Recovered . | . . . . Drone Launches . | . . . . Drone Recoveries . | . . . . Exploration | -11 -10 -10 -9 ------------- Run | Yrd Mat Min Mat Turns Passed 491 | 80 215 29 167 Spaces Moved 178 | 37 82 11 48 Core 6 | 3 . . 3 Treads . | . . . . Legs 172 | 34 82 11 45 Wheels . | . . . . Hover . | . . . . Flight . | . . . . Fastest Speed 50 | 50 120 190 50 Average Speed 155 | 114 185 190 129 Slowest Speed 400 | 120 190 190 400 Overloaded Moves . | . . . . Propulsion Burnouts . | . . . . Robots Hopped . | . . . . Cave-ins Triggered . | . . . . Exploration Rate (%) 9 | 4 11 11 10 Regions Visited 3 Branch Regions 1 Pre-discovered Areas . | . . . . Known Exits Taken . | . . . . Unknown Exits Taken 3 | 1 1 1 . Scrap Searched . | . . . . Spaces Dug 1 | . 1 . . Terrain Destroyed 5 | . 5 . . Melee . | . . . . Projectile 5 | . 5 . . AOE . | . . . . Terrain Rammed . | . . . . Walls Destroyed . | . . . . Machines Disabled . | . . . . Actions | -11 -10 -10 -9 --------- Run | Yrd Mat Min Mat Total 281 | 60 108 20 93 Wait 13 | . . 10 3 Move 175 | 36 81 10 48 Hop . | . . . . Pick Up 9 | 2 6 . 1 Fast Attach 9 | 6 2 . 1 Attach 5 | 2 2 . 1 Detach 5 | 2 3 . . Swap 2 | . 1 . 1 Drop . | . . . . Fire 59 | 12 13 . 34 Melee . | . . . . Ram . | . . . . Kick 4 | . . . 4 Crush . | . . . . Escape Stasis . | . . . . Rewire . | . . . . Trap . | . . . . Miscellaneous . | . . . . Route ------- -11/Scrapyard -10/Materials -10/Mines -9/Materials History --------- Turn | Location | Event 40 | -11/Scrapyard | Discovered new exit (range 15) 81 | -11/Scrapyard | Entered Materials 173 | -10/Materials | Discovered new exit (range 15) 296 | -10/Materials | Entered Mines 302 | -10/Mines | Discovered new exit (range 6) 310 | -10/Mines | Build established: Mutant 325 | -10/Mines | Entered Materials 325 | -9/Materials | Evolved 2 slots: Propulsion x2 477 | -9/Materials | Destroyed 7 combat bots 478 | -9/Materials | Core integrity fell below 50% 490 | -9/Materials | Core integrity fell below 20% 492 | -9/Materials | Destroyed by Y-45 Defender with Beam Rifle Last Messages --------------- 00471_ Overheating: System interference. 00471_ Med. Laser temporarily disabled. 00472_ S-10 Pest heat damages Flight Unit. 00473_ Acquired 10 matter. 00473_ Aluminum Leg destroyed. 00474_ Overheating: Lrg. Storage Unit damaged (-68). 00474_ Critical hit (Burn: +37). 00475_ Overheating: Energy bleed (-5). 00475_ Broken Aluminum Leg destroyed. 00477_ Overheating: Lrg. Storage Unit damaged (-67). 00477_ S-10 Pest destroyed. 00481_ Overheating: Lrg. Storage Unit damaged (-16). 00481_ W-16 Scout sends out distress signal. 00482_ EM Pulse Gun destroyed. 00484_ ALERT: Hostiles spotted, dispatching reinforcements to Terminal M009. 00486_ Critical hit (Burn: +37). 00486_ Med. Laser destroyed. 00489_ Lrg. Storage Unit destroyed. 00492_ Acquired Lgt. Assault Rifle. Map ----- +----------------------------------------------------+ | ???????????????????# # #???????????????? | | ???????????????????# """" # #???????????????? | | ???????????????????# """"?# #???????????????? | | ???????????????????# """"?# #???????????????? | | ????????????????????????###??# #???????????????? | | ?????????????????????????????# #???????????????? | | ?????????????????????????????# #???????????????? | | ?????????????????????????????# #???????????????? | | ?????????????????????????????# #???????????????? | | ?????????????????????????????# #???????????????? | | ?????????????????????????????# #???????????????? | | ?????????????????????????????# #???????????????? | | ?????????????????????????????# #???????????????? | | ?????????????????????????????# #???????????????? | | ?????????????????????????????# #???????????????? | | ?????????????????????????????# #???????????????? | | ????????????????????????????## = ##??????????????? | | ???????????????##########+###= ###+#######????? | | ????????????? %! ???? | | ????????????? ! ???? | | ????????????? ???? | | ???????????????############## ##### ####+#???? | | ????????????????????????#######/#######?#????????? | | ????????????????????????#* Yg #??????????? | | ????????????????????????#**! s #??????????? | | ???????# ########@[!Y #??????????? | | ???????+ /=*%!%%+%== #??????????? | | ???????# ########%%! #??????????? | | ????????????????????????#[%t #??????????? | | ????????????????????????##+#####+######??????????? | | ???????????????????????? =!#?????????????????????? | | ??????????????????????? #?????????????????????? | | ??????????????????????""" #?????????????????????? | | ???????????????????? """ #?????????????????????? | | ??????????????????? """ +?????????????????????? | | ??????????????????+ """ #?????????????????????? | | ??????????????????#???? #?????????????????????? | | ??????????????????????? #?????????????????????? | | ??????????????????????? ??????????????????????? | | ???????????????????????! ??????????????????????? | | ???????????????????????! ??????????????????????? | | ???????????????????????! ??????????????????????? | | ??????????????????????? ??????????????????????? | | ???????????????????????? ??????????????????????? | | ?????????????????????????????????????????????????? | | ?????????????????????????????????????????????????? | | ?????????????????????????????????????????????????? | | ?????????????????????????????????????????????????? | | ?????????????????????????????????????????????????? | | ?????????????????????????????????????????????????? | +----------------------------------------------------+ Best States ------------- Heat Dissipation 28 Energy Generation 10 Energy Capacity 125 Matter Stores 300 Matter Capacity 300 Sight Range 16 Robot Scan Range 14 Terrain Scan Density 10 Evasion (%) 55 Item Schematics ----------------- None Robot Schematics ------------------ None Fabricated ------------ Nothing Alien Tech Used ----------------- None Achievements -------------- None Challenges ------------ None Game ------ Seed SmartbombAssemblyPerforator Manual? 0 Play Time 00:05:31 Cumulative 42.1 hours Start 2024.04.03 @ 02:45:20 End 2024.04.03 @ 02:49:23 Sessions 1 Manual Loads 0 Difficulty Rogue Special Mode None Game No. 97 Rogue 97 Adventurer 0 Explorer 0 Win Type - Total 0 Types 0/0/0/0/0/0/0/0/0 Lore% 20 Gallery% 33 Achievement% 26 Wizard Run 0 Options --------- Layout 0 ASCII 0 Keyboard 1 Movement Numpad Keybinds 0 Fullscreen 1 Font 18/X11 Map View 76x50 Zoom Use 0% Tactical HUD 1 Map Filters NONE Filters NONE Steam 1 RUN: ded0727b-708e-49e3-96b2-eadc4e3dfd5a